bitfinex-derivatives/quotes_ETHF0:USTF0_20251007
["timestamp","ask_amount","ask_price","bid_price","bid_amount"]
[1759813314579,0.8437,4716.0,4715.9,0.212]
[1759813315575,0.8437,4716.0,4715.8,41.1815]
[1759813315576,0.3015,4715.9,4715.8,40.8]
[1759813315772,0.3015,4715.9,4715.8,41.012]
[1759813316074,0.7186,4715.9,4715.8,0.212]
[1759813317373,0.7186,4715.9,4715.6,3.20948253]
[1759813317374,0.3815,4715.8,4715.6,3.20948253]
[1759813317574,0.3015,4715.7,4715.6,3.20948253]
[1759813317779,0.7186,4715.7,4715.6,3.42148253]
[1759813317979,0.7186,4715.7,4715.6,0.21368253]
[1759813319283,0.7186,4715.7,4715.6,0.00168253]
[1759813321578,0.7186,4714.7,4714.6,3.2078]
[1759813322476,0.72117655,4714.7,4714.6,3.20990385]
[1759813323076,0.72117655,4714.7,4714.6,0.00210385]
[1759813326184,3.5162007,4714.7,4714.6,0.00210385]
[1759813326691,0.7186,4713.6,4713.5,3.80149]
[1759813326895,0.7186,4713.6,4713.5,3.4198]
[1759813327577,0.7186,4713.6,4713.5,3.42151326]
[1759813328882,1.10028,4713.6,4713.5,3.42151326]
[1759813329388,1.10028,4713.6,4713.5,3.20951326]
[1759813329588,0.7186,4713.6,4713.5,3.20951326]
[1759813329791,0.7186,4713.6,4713.5,0.00171326]
[1759813338495,0.5036,4713.6,4713.5,3.20951326]
[1759813339997,0.3015,4713.6,4713.5,3.42151326]
[1759813340395,0.3101,4713.9,4713.8,0.38166]
[1759813340996,0.7321,4713.9,4713.8,0.38166]
[1759813342996,0.7321,4713.8,4713.7,0.38167]
[1759813343194,0.7321,4713.8,4713.7,0.59367]
[1759813343889,0.38167,4713.7,4713.5,3.20951326]
[1759813344085,0.7321,4713.6,4713.5,0.00171326]
[1759813347899,1.19845048,4713.6,4713.5,0.00171326]
[1759813350292,4.40625048,4713.6,4713.5,0.00171326]
[1759813351499,0.8517,4713.0,4712.9,0.02121858]
[1759813351801,1.31890607,4713.0,4712.9,0.02121858]
[1759813352498,1.31890607,4713.0,4712.9,0.02369742]
[1759813353701,1.31890607,4713.0,4711.9,3.2078]
[1759813353702,0.1196,4712.0,4711.9,3.2078]
[1759813353902,0.8517,4712.0,4711.9,3.2078]
[1759813354614,1.23351,4712.0,4711.9,0.0017588]
[1759813354901,0.3288,4711.0,4710.9,0.01957677]
[1759813355111,0.4297,4711.0,4710.9,0.23157677]
[1759813355301,0.8517,4711.0,4710.9,0.01957677]
[1759813355607,0.4297,4711.0,4710.9,5.01957677]
[1759813356003,0.64096071,4711.0,4710.9,5.02230794]
[1759813356202,0.85376071,4711.0,4710.9,0.02230794]
[1759813356403,0.85376071,4711.0,4710.9,0.23430794]
[1759813360305,0.43176071,4711.0,4710.9,0.23430794]
[1759813360501,0.63466071,4711.0,4710.9,0.23430794]
[1759813361011,0.85246071,4711.0,4710.9,0.23430794]
[1759813361506,0.85246071,4711.0,4710.9,0.02230794]
[1759813361705,0.85246071,4711.0,4710.9,0.23430794]
[1759813362101,1.23435071,4711.0,4710.9,0.02230794]
[1759813363213,0.85246071,4711.0,4710.9,0.02230794]
[1759813363518,0.85246071,4711.0,4710.9,0.61620794]
[1759813364113,0.85246071,4711.0,4710.9,0.02230794]
[1759813364516,0.85246071,4711.0,4710.9,0.23430794]
[1759813367420,0.85246071,4711.0,4710.9,0.02230794]
[1759813367623,0.85246071,4711.0,4710.9,0.23430794]
[1759813369920,0.85246071,4711.0,4710.9,0.02230794]
[1759813370120,0.85246071,4711.0,4710.9,0.23430794]
[1759813370320,0.85246071,4711.0,4710.9,0.02230794]
[1759813370616,0.85246071,4711.0,4710.9,0.23430794]
[1759813371019,0.85246071,4711.0,4710.9,0.02230794]
[1759813371226,0.85246071,4711.0,4710.9,0.23430794]
[1759813373126,0.85246071,4711.0,4710.9,0.02230794]
[1759813374319,0.1235,4710.5,4710.3,3.2078]
[1759813374532,1.09334,4710.4,4710.3,3.2078]
[1759813375026,1.09334,4710.4,4710.3,3.4198]
[1759813375327,1.09334,4710.4,4710.3,0.212]
[1759813375524,1.09334,4710.4,4710.3,0.21355453]
[1759813376225,1.09334,4710.4,4710.3,0.00155453]
[1759813376426,1.09334,4710.4,4710.3,0.21355453]
[1759813377019,0.7114,4710.4,4710.3,0.21355453]
[1759813379224,0.7114,4710.4,4710.3,0.00155453]
[1759813383431,1.17849767,4710.4,4710.3,0.00155453]
[1759813388235,0.7114,4710.4,4710.3,0.00155453]
[1759813388931,0.5081,4710.4,4710.3,0.00155453]
[1759813390738,0.5081,4710.4,4710.3,3.20935453]
[1759813390931,0.301,4710.4,4710.3,3.20935453]
[1759813391537,0.12166071,4711.0,4710.3,3.20935453]
[1759813391538,0.53206071,4711.0,4710.9,0.3819]
[1759813391736,0.53206071,4711.0,4710.9,3.8017]
[1759813392134,0.83306071,4711.0,4710.9,3.8017]
[1759813394136,0.83306071,4711.0,4710.9,3.5897]
[1759813394336,0.83306071,4711.0,4710.9,3.8017]
[1759813394735,0.83306071,4711.0,4710.9,3.5897]
[1759813395036,0.83306071,4711.0,4710.9,3.4198]
[1759813396839,0.83306071,4711.0,4710.9,3.2078]
[1759813397033,0.83306071,4711.0,4710.9,3.4198]
[1759813397737,0.83306071,4711.0,4710.9,0.212]
[1759813397934,0.7114,4710.6,4710.5,0.38193]
[1759813398134,0.7114,4710.6,4710.5,0.59393]
[1759813399739,0.301,4710.6,4710.5,0.59393]
[1759813400440,0.5185,4710.6,4710.5,0.59393]
[1759813402748,0.301,4710.6,4710.5,0.59393]
[1759813405849,0.3091,4710.9,4710.8,0.38191]
[1759813406049,0.12166071,4711.0,4710.8,0.38191]
[1759813406050,0.00206071,4711.0,4710.8,0.59391]
[1759813406347,0.00206071,4711.0,4710.9,8.2078]
[1759813406538,0.00206071,4711.0,4710.9,49.0078]
[1759813412355,0.4287,4711.5,4711.4,0.38186]
[1759813412555,0.4287,4711.5,4711.4,3.80166]
[1759813413152,0.4287,4711.5,4711.4,44.60166]
[1759813413457,0.43125928,4711.5,4711.4,44.60166]
[1759813414549,0.00255928,4711.5,4711.4,44.60166]
[1759813414756,0.1313,4713.5,4712.8,0.38174]
[1759813415061,0.1313,4713.5,4713.4,0.38169]
[1759813415259,0.1313,4713.5,4713.4,3.80149]
[1759813415655,0.5481,4713.5,4713.4,44.60149]
[1759813415857,0.54963832,4713.5,4713.4,44.60149]
[1759813416861,0.87673832,4713.5,4713.4,44.60149]
[1759813418655,0.00153832,4713.5,4713.4,44.60149]
[1759813418861,0.3308,4714.0,4713.9,0.38165]
[1759813419170,0.3308,4714.0,4713.9,3.80145]
[1759813419358,0.6579,4714.0,4713.9,3.80145]
[1759813419762,0.66024385,4714.0,4713.9,3.80341679]
[1759813420864,0.46074385,4714.0,4713.9,3.80341679]
[1759813421061,0.4584,4714.5,4713.9,3.42176679]
[1759813421261,0.6579,4714.5,4714.4,3.58941]
[1759813421460,0.6579,4714.5,4714.4,3.80141]
[1759813421657,0.3271,4715.0,4714.9,0.38157]
[1759813421863,0.3268,4715.5,4715.4,0.38153]
[1759813422169,0.53862092,4715.5,4715.4,3.80233]
[1759813422365,0.86572092,4715.5,4715.4,3.80233]
[1759813424267,0.45672092,4715.5,4715.4,3.80233]
[1759813425172,0.45672092,4715.5,4715.4,44.60233]
[1759813429674,0.44972092,4715.5,4715.4,44.60233]
[1759813434073,0.44972092,4715.5,4715.4,44.38933]
[1759813434283,0.44972092,4715.5,4715.4,44.60133]
[1759813435983,0.44972092,4715.5,4715.4,44.60233]
[1759813436578,5.87552092,4715.5,4715.4,3.58933]
[1759813436780,5.87552092,4715.5,4715.1,0.38155]
[1759813436980,0.3041,4715.4,4715.2,0.213]
[1759813437179,0.7299,4715.3,4715.2,0.38155]
[1759813437483,0.7299,4715.3,4715.2,0.59455]
[1759813437684,0.7299,4715.3,4715.2,0.38155]
[1759813437977,0.7299,4715.3,4715.2,0.59455]
[1759813438685,0.524,4715.3,4715.2,0.59455]
[1759813438885,0.12262092,4715.5,4715.2,0.59455]
[1759813438886,0.42672092,4715.5,4715.4,0.38153]
[1759813439082,0.42672092,4715.5,4715.4,3.80233]
[1759813439486,0.00232092,4715.5,4715.4,44.60233]
[1759813442281,0.30642092,4715.5,4715.4,44.60233]
[1759813442483,0.42672092,4715.5,4715.4,44.60133]
[1759813442788,0.85252092,4715.5,4715.4,3.58933]
[1759813442984,0.85252092,4715.5,4715.4,3.80133]
[1759813443287,0.42672092,4715.5,4715.4,44.60133]
[1759813443483,0.42672092,4715.5,4715.4,44.38933]
[1759813443789,0.42672092,4715.5,4715.4,44.60133]
[1759813446293,0.51572092,4715.5,4715.4,44.60133]
[1759813447187,0.51572092,4715.5,4715.4,44.38933]
[1759813447393,0.94152092,4715.5,4715.4,3.80133]
[1759813448288,0.09132092,4715.5,4715.4,3.80133]
[1759813448883,0.09132092,4715.5,4715.4,44.60133]
[1759813451394,0.3041,4715.9,4715.8,0.3815]
[1759813451693,0.1273,4716.0,4715.8,0.5935]
[1759813451894,0.3041,4716.2,4716.0,0.38148]
[1759813452191,0.3041,4716.2,4716.1,0.213]
[1759813452394,0.30639702,4716.2,4716.1,0.213]
[1759813452690,0.30639702,4716.2,4716.1,41.013]
[1759813452894,0.1273,4716.5,4716.4,0.38145]
[1759813453096,0.4314,4716.5,4716.4,3.80125]
[1759813453596,0.4314,4716.5,4716.4,44.60125]
[1759813453888,0.43389659,4716.5,4716.4,44.60125]
[1759813456191,0.00249659,4716.5,4716.4,44.60125]
[1759813458702,0.42819659,4716.5,4716.4,44.60125]
[1759813460098,0.42819659,4716.5,4716.4,44.38925]
[1759813460300,0.42819659,4716.5,4716.4,44.60125]
[1759813461198,0.30869659,4716.5,4716.4,44.60125]
[1759813461598,0.42819659,4716.5,4716.4,44.60125]
[1759813464404,0.42819659,4716.5,4716.4,44.38925]
[1759813464604,0.42819659,4716.5,4716.4,44.60125]
[1759813465906,0.42819659,4716.5,4716.4,44.38925]
[1759813466107,0.42819659,4716.5,4716.4,44.60125]
[1759813466606,0.42819659,4716.5,4716.4,44.38925]
[1759813466805,0.42819659,4716.5,4716.4,44.60125]
[1759813467505,0.42819659,4716.5,4716.4,44.38925]
[1759813467705,0.42819659,4716.5,4716.4,44.60125]
[1759813469512,0.00249659,4716.5,4716.4,44.60125]
[1759813471410,0.30869659,4716.5,4716.4,44.60125]
[1759813471811,0.42819659,4716.5,4716.4,44.60125]
[1759813472006,0.42819659,4716.5,4716.4,44.38925]
[1759813472616,0.42819659,4716.5,4716.4,44.60125]
[1759813474211,0.42819659,4716.5,4716.4,44.0078]
[1759813474420,0.8442,4716.0,4715.9,0.38149]
[1759813474717,0.7247,4715.9,4715.8,3.58929]
[1759813474912,0.7247,4715.9,4715.8,3.80129]
[1759813475511,5.7247,4715.9,4715.3,44.0078]
[1759813475714,0.4257,4715.5,4715.4,0.59353]
[1759813476109,0.6451,4715.5,4715.4,0.59353]
[1759813476509,0.8442,4715.5,4715.4,0.38153]
[1759813476710,5.8442,4715.5,4715.4,0.38153]
[1759813476906,0.7296,4715.4,4715.3,3.2078]
[1759813477108,0.7296,4715.4,4715.3,3.4198]
[1759813477311,0.7296,4715.4,4715.3,0.212]
[1759813477518,5.7296,4715.4,4715.3,0.212]
[1759813478013,0.2027,4714.9,4714.8,44.0078]
[1759813478215,0.7296,4714.9,4714.8,44.60138]
[1759813479016,0.7296,4714.9,4714.8,44.60238]
[1759813479211,0.7296,4714.9,4714.8,3.58938]
[1759813479612,0.7296,4714.9,4714.8,3.80238]
[1759813480216,0.7296,4714.9,4714.8,3.58938]
[1759813480719,0.7296,4714.9,4714.8,0.38158]
[1759813481018,0.7296,4714.9,4714.8,0.59458]
[1759813481713,0.7296,4714.9,4714.8,0.38158]
[1759813481918,0.7296,4714.9,4714.8,0.59458]
[1759813483010,0.7296,4714.9,4714.8,0.213]
[1759813483718,0.7296,4714.9,4714.8,3.4208]
[1759813485520,0.7296,4714.9,4714.8,0.213]
[1759813487519,0.122,4714.5,4714.3,3.2078]
[1759813487824,0.6373,4714.5,4714.4,0.59461]
[1759813489626,0.8516,4714.5,4714.4,0.59461]
[1759813492823,0.4346,4714.5,4714.4,0.59461]
[1759813493829,0.4346,4714.5,4714.4,41.39461]
[1759813496127,0.4346,4714.5,4714.4,41.18161]
[1759813496323,0.4346,4714.5,4714.4,41.39461]
[1759813497128,0.4346,4714.5,4714.4,41.18161]
[1759813497328,0.8617,4714.5,4714.4,0.59461]
[1759813497530,0.8617,4714.5,4714.4,0.38161]
[1759813497731,0.8617,4714.5,4714.4,0.59461]
[1759813498034,0.8617,4714.5,4714.4,0.213]
[1759813498828,0.8601,4714.5,4714.4,0.213]
[1759813508038,0.8678,4714.0,4713.8,3.58946]
[1759813509046,0.8678,4714.0,4713.8,3.2078]
[1759813509541,0.8678,4714.0,4712.6,2.45658622]
[1759813509542,0.38168,4713.7,4713.4,0.38169]
[1759813509737,0.8678,4713.5,4713.4,0.38169]
[1759813509943,0.8678,4713.5,4713.3,3.4208]
[1759813509944,0.7381,4713.4,4713.3,3.4208]
[1759813510447,0.7381,4713.4,4713.3,3.42269867]
[1759813511843,0.7381,4713.4,4713.3,0.21489867]
[1759813512140,0.7381,4713.4,4713.3,0.00189867]
[1759813512345,0.7381,4713.4,4712.3,3.58958]
[1759813512346,0.7381,4712.4,4712.3,3.58958]
[1759813512546,0.5247,4712.4,4712.3,3.80258]
[1759813512846,0.311,4712.4,4712.3,3.80258]
[1759813513346,0.31286441,4712.4,4712.3,3.80427434]
[1759813513641,0.52656441,4712.4,4712.3,3.80427434]
[1759813514239,0.73996441,4712.4,4712.3,3.42249434]
[1759813514633,0.73996441,4712.4,4712.3,3.20949434]
[1759813514845,0.73996441,4712.4,4712.3,0.00169434]
[1759813515040,0.73996441,4712.4,4712.3,0.21469434]
[1759813515243,0.73996441,4712.4,4712.3,0.00169434]
[1759813515446,0.73996441,4712.4,4712.3,0.21469434]
[1759813515739,5.73996441,4712.4,4712.3,0.00169434]
[1759813516534,6.69442441,4712.4,4711.7,3.2078]
[1759813516737,1.11992,4711.8,4711.7,3.2078]
[1759813517646,1.11992,4711.8,4711.7,3.21013823]
[1759813518236,1.11992,4711.8,4711.7,0.00233823]
[1759813520741,6.11992,4711.8,4711.7,0.00233823]
[1759813521537,5.7381,4711.8,4711.7,0.00233823]
[1759813530242,8.55374243,4711.8,4711.7,0.00233823]
[1759813530740,0.7326,4711.2,4711.1,0.38188]
[1759813530944,0.1305,4711.5,4710.7,3.2078]
[1759813530945,0.4179,4710.8,4710.7,3.2078]
[1759813531145,0.7326,4710.8,4710.7,3.58971]
[1759813531647,0.7326,4710.8,4710.7,3.59245189]
[1759813535042,0.3147,4710.8,4710.7,3.59245189]
[1759813535248,0.5299,4710.8,4710.7,3.59245189]
[1759813535654,0.7326,4710.8,4710.7,3.59245189]
[1759813539145,0.7326,4710.8,4710.7,3.80545189]
[1759813540661,0.7326,4710.8,4710.7,0.00274189]
[1759813540951,0.7189,4710.4,4710.3,0.38194]
[1759813541962,0.5134,4710.4,4710.3,0.38395731]
[1759813543777,0.7189,4710.4,4710.3,0.38395731]
[1759813544072,0.7189,4710.4,4710.3,0.59695731]
[1759813544269,0.3114,4710.4,4710.3,0.59695731]
[1759813544772,0.5134,4710.4,4710.3,0.59695731]
[1759813545873,0.7189,4710.4,4710.3,0.59695731]
[1759813546573,0.5134,4710.4,4710.3,0.59695731]
[1759813546770,0.3114,4710.4,4710.3,0.59695731]
[1759813547771,0.5134,4710.4,4710.3,0.59695731]
[1759813550470,0.3114,4710.4,4710.3,0.59695731]
[1759813553177,0.5274,4710.4,4710.3,0.59695731]
[1759813553371,0.7455,4710.4,4710.3,0.00201731]
[1759813553581,0.7455,4710.4,4709.2,1.50219622]
[1759813553582,0.7505,4709.6,4709.5,3.2078]
[1759813553880,0.3164,4709.4,4709.1,0.38204]
[1759813554082,0.3164,4709.4,4708.9,3.2078]
[1759813554083,0.5324,4709.4,4709.3,0.7242]
[1759813554573,2.79339365,4709.9,4709.3,5.6263553]
[1759813554574,0.3164,4709.9,4709.3,5.6263553]
[1759813554781,0.3164,4710.4,4710.2,0.38195]
[1759813554978,0.5324,4710.3,4710.2,1.10615]
[1759813555482,0.7505,4710.3,4710.2,0.79335]
[1759813555673,0.7505,4710.3,4710.2,1.10615]
[1759813555869,0.5324,4710.3,4710.2,1.10615]
[1759813556075,0.3164,4710.5,4710.4,1.10614]
[1759813556277,0.3164,4710.5,4710.4,1.31914]
[1759813563182,0.652,4711.0,4710.9,1.1061]
[1759813563484,0.5324,4711.0,4710.9,1.3191]
[1759813563790,0.5424,4711.0,4710.9,1.3191]
[1759813564176,0.662,4711.0,4710.9,0.9372]
[1759813564379,0.8801,4711.0,4710.9,0.6244]
[1759813564782,0.5424,4711.0,4710.9,0.9372]
[1759813564986,0.01,4711.0,4710.9,0.9372]
[1759813565186,0.3264,4711.0,4710.9,0.9372]
[1759813566684,0.1196,4712.0,4711.8,0.59092]
[1759813566685,0.7505,4711.9,4711.8,0.59092]
[1759813566888,1.21781741,4711.9,4711.8,1.00622]
[1759813567491,0.7505,4711.9,4711.8,1.31902]
[1759813567783,0.5324,4711.9,4711.8,1.31902]
[1759813567984,0.7505,4711.9,4711.8,0.80392]
[1759813568289,0.5324,4711.9,4711.8,1.31902]
[1759813568681,0.7505,4711.9,4711.8,1.00622]
[1759813569487,0.7505,4711.9,4711.8,0.80392]
[1759813571890,0.7505,4711.9,4711.8,1.00622]
[1759813572195,0.5324,4711.9,4711.8,1.31902]
[1759813573394,0.5324,4711.9,4711.8,1.10602]
[1759813573694,0.5324,4711.9,4711.8,1.31902]
[1759813575096,0.7505,4711.9,4711.8,1.31902]
[1759813575297,0.7505,4711.9,4711.8,1.00622]
[1759813576497,0.7505,4711.9,4711.8,0.6244]
[1759813578392,0.7505,4711.9,4711.8,0.9387]
[1759813578794,0.7505,4711.9,4711.8,0.4221]
[1759813579391,0.1196,4712.0,4711.4,3.58965]
[1759813579392,1.01825,4711.5,4711.4,3.58965]
[1759813579693,1.22595,4711.5,4711.4,4.01345]
[1759813579897,1.22595,4711.5,4711.4,3.2078]
[1759813580095,0.8441,4711.0,4710.9,3.8005]
[1759813580286,0.8441,4711.0,4710.9,4.0135]
[1759813580487,0.6364,4711.0,4710.9,4.538]
[1759813581595,0.8441,4711.0,4710.9,4.2237]
[1759813582400,0.5074,4711.0,4710.9,4.538]
[1759813582595,0.129,4711.5,4711.4,0.38186]
[1759813582895,0.3365,4711.5,4711.4,1.33016]
[1759813583097,0.6364,4711.5,4711.4,1.33016]
[1759813583297,0.2999,4711.5,4711.4,1.33016]
[1759813584300,0.5074,4711.5,4711.4,1.33016]
[1759813585304,0.8441,4711.5,4711.4,0.80286]
[1759813585599,0.8441,4711.5,4711.4,1.01586]
[1759813587096,0.8441,4711.5,4711.0,0.3143]
[1759813587395,0.8441,4711.5,4710.9,3.9431]
[1759813587396,0.6364,4711.0,4710.9,3.9431]
[1759813587591,0.2999,4711.0,4710.9,4.1551]
[1759813587795,0.5074,4711.0,4710.9,4.1551]
[1759813588701,0.6364,4711.0,4710.9,4.1551]
[1759813589700,0.2999,4711.0,4710.9,4.1551]
[1759813590701,0.5074,4711.0,4710.9,4.1551]
[1759813592696,0.2999,4711.0,4710.9,4.1551]
[1759813593897,0.5074,4711.0,4710.9,4.1551]
[1759813594097,0.8441,4711.0,4710.9,4.1551]
[1759813594297,0.8441,4711.0,4710.9,3.8408]
[1759813594596,0.8441,4711.0,4710.9,3.6306]
[1759813594999,0.8441,4711.0,4710.9,3.8408]
[1759813595801,0.8441,4711.0,4710.9,3.4186]
[1759813595995,0.8441,4711.0,4710.9,3.4198]
[1759813597803,1.226,4711.0,4710.3,3.5221]
[1759813598003,0.7377,4710.9,4710.8,0.3819]
[1759813598203,0.7377,4710.9,4710.8,0.5939]
[1759813599504,0.7377,4710.7,4710.6,0.38192]
[1759813599706,0.7377,4710.7,4710.6,0.59392]
[1759813600098,0.7377,4710.7,4710.6,0.79992]
[1759813601102,0.7377,4710.7,4710.6,1.00492]
[1759813603202,0.7377,4710.7,4710.6,0.623]
[1759813604810,0.7377,4710.7,4710.6,0.9374]
[1759813605010,0.7377,4710.7,4710.6,0.623]
[1759813606508,0.7377,4710.7,4710.6,0.418]
[1759813607914,0.1297,4710.5,4710.3,3.2078]
[1759813608108,1.24933,4710.5,4710.4,0.212]
[1759813608311,0.7166,4710.2,4710.1,0.59916]
[1759813608612,0.7166,4710.2,4710.1,1.02816]
[1759813609319,0.7166,4710.2,4710.1,1.11966]
[1759813609519,0.7166,4710.2,4710.1,1.33166]
[1759813610819,0.2994,4710.2,4710.1,1.33166]
[1759813614422,0.5155,4710.2,4710.1,1.33166]
[1759813614821,0.7166,4710.2,4710.1,0.59916]
[1759813615025,0.7166,4710.2,4710.1,0.81116]
[1759813615327,0.7166,4710.2,4710.1,1.33166]
[1759813615721,0.5155,4710.2,4710.1,1.33166]
[1759813615922,0.5155,4710.2,4710.1,1.11966]
[1759813616316,0.5155,4710.2,4710.1,1.33166]
[1759813616524,0.5155,4710.2,4710.1,1.11966]
[1759813616719,0.5155,4710.2,4710.1,1.33166]
[1759813619133,0.7166,4710.2,4710.1,1.02816]
[1759813620130,0.631,4710.0,4709.9,0.59918]
[1759813620329,0.8471,4710.0,4709.9,0.81118]
[1759813620731,0.8471,4710.0,4709.9,0.59918]
[1759813620935,0.8471,4710.0,4709.9,0.81618]
[1759813621123,0.8471,4710.0,4709.9,0.38198]
[1759813621726,0.8471,4710.0,4709.9,0.81118]
[1759813621931,0.8471,4710.0,4709.9,0.4292]
[1759813622230,0.8471,4710.0,4709.9,0.212]
[1759813622824,0.2994,4709.9,4709.8,0.59918]
[1759813623028,0.7166,4709.9,4709.8,0.59918]
[1759813623223,0.7166,4709.9,4709.8,0.81618]
[1759813623422,0.2994,4709.9,4709.8,1.33168]
[1759813623630,0.5155,4709.9,4709.8,1.33168]
[1759813624123,0.8463,4710.5,4710.4,0.81614]
[1759813624327,0.2994,4710.5,4710.4,1.11964]
[1759813624631,3.7233,4710.9,4710.8,1.11961]
[1759813624824,4.18732267,4710.9,4710.8,1.33161]
[1759813625429,0.97952267,4710.9,4710.8,1.33161]
[1759813625621,0.5155,4710.9,4710.8,1.33161]
[1759813626532,3.7233,4711.4,4711.3,0.81606]
[1759813626831,4.38849858,4711.4,4711.3,0.81606]
[1759813627427,0.46409858,4711.4,4711.3,1.11956]
[1759813627627,0.7166,4711.9,4711.8,0.4342]
[1759813627829,1.18067497,4711.9,4711.8,0.4342]
[1759813628437,1.18067497,4711.9,4711.8,0.81602]
[1759813629836,1.18067497,4711.9,4711.6,0.38184]
[1759813630038,0.7166,4711.7,4711.6,0.38184]
[1759813630541,0.2994,4711.6,4711.5,3.4198]
[1759813630734,0.7166,4711.6,4711.5,3.4198]
[1759813631634,0.1305,4712.0,4710.8,3.2078]
[1759813631635,0.7166,4710.9,4710.8,3.2078]
[1759813631835,0.2994,4710.8,4710.6,0.38192]
[1759813632034,0.7166,4710.8,4710.7,0.212]
[1759813632436,0.7166,4710.8,4710.7,0.4292]
[1759813633143,0.7166,4710.8,4710.7,0.212]
[1759813633838,0.4172,4710.8,4710.6,0.38192]
[1759813634039,0.7166,4710.7,4710.6,0.59912]
[1759813634234,0.7166,4710.7,4710.6,1.33262]
[1759813634539,0.3466,4711.0,4710.9,1.1196]
[1759813634938,1.02789,4711.0,4710.9,0.7377]
[1759813635245,1.22899,4711.0,4710.9,0.4342]
[1759813636341,0.2994,4711.3,4711.2,1.11957]
[1759813636645,0.2994,4711.5,4711.4,0.7377]
[1759813637039,3.3383,4712.0,4711.4,0.7377]
[1759813637240,3.6377,4712.0,4711.9,0.7377]
[1759813637440,3.8538,4712.0,4711.9,0.7377]
[1759813637841,4.0549,4712.0,4711.9,0.4342]
[1759813640143,0.38179,4712.3,4712.1,0.38179]
[1759813640440,0.5279,4712.2,4712.1,0.58279]
[1759813640646,0.5279,4712.2,4712.1,1.01429]
[1759813640847,0.5279,4712.2,4712.1,1.32089]
[1759813641549,0.3255,4712.2,4712.1,1.32089]
[1759813641746,0.32736441,4712.4,4712.3,0.88938]
[1759813642043,0.00186441,4712.4,4712.3,1.10788]
[1759813642238,0.32736441,4712.4,4712.3,1.10788]
[1759813642440,0.00186441,4712.4,4712.3,1.10788]
[1759813642839,0.3255,4713.1,4713.0,0.38173]
[1759813643037,0.3255,4713.5,4713.4,1.10779]
[1759813643240,0.5279,4713.9,4713.8,0.4195]
[1759813643435,0.5279,4713.9,4713.8,0.6325]
[1759813643641,0.5279,4713.9,4713.8,1.01416]
[1759813643843,0.53020102,4713.9,4713.8,1.01641554]
[1759813644250,0.00230102,4713.9,4713.8,1.32301554]
[1759813644751,0.00230102,4713.9,4713.8,42.12301554]
[1759813646051,0.00230102,4713.9,4713.8,41.91001554]
[1759813646252,0.00230102,4713.9,4713.8,45.33081554]
[1759813647950,3.2078,4714.8,4713.8,45.33081554]
[1759813647951,3.2078,4714.8,4714.7,0.7261]
[1759813648147,3.2078,4714.8,4714.7,0.9391]
[1759813648455,0.38156,4715.2,4715.0,0.4195]
[1759813648653,0.3255,4715.1,4715.0,0.7261]
[1759813648851,0.5279,4715.1,4715.0,0.9391]
[1759813649053,0.53032508,4715.1,4715.0,0.9391]
[1759813649354,0.32792508,4715.1,4715.0,0.9391]
[1759813649653,0.53032508,4715.1,4715.0,0.9391]
[1759813649858,0.74182508,4715.1,4715.0,0.414]
[1759813650154,0.74182508,4715.1,4715.0,0.201]
[1759813650349,0.74182508,4715.1,4715.0,0.414]
[1759813650552,0.74182508,4715.1,4715.0,0.6325]
[1759813650752,0.74182508,4715.1,4715.0,0.4195]
[1759813651046,0.74182508,4715.1,4715.0,0.9391]
[1759813651655,0.32792508,4715.1,4715.0,0.9391]
[1759813651851,0.00242508,4715.1,4715.0,1.0036]
[1759813652057,0.53032508,4715.1,4715.0,0.7261]
[1759813652358,0.00242508,4715.1,4715.0,1.0036]
[1759813652557,0.32792508,4715.1,4715.0,0.7261]
[1759813652750,0.53032508,4715.1,4715.0,41.7391]
[1759813653550,0.53032508,4715.1,4715.0,41.5261]
[1759813653755,0.53032508,4715.1,4715.0,41.7391]
[1759813654051,0.53032508,4715.1,4715.0,41.2195]
[1759813654252,0.53032508,4715.1,4715.0,41.4325]
[1759813654956,0.53032508,4715.1,4715.0,41.7391]
[1759813656056,0.53032508,4715.1,4715.0,41.4325]
[1759813656756,0.53032508,4715.1,4715.0,41.5261]
[1759813656958,0.53032508,4715.1,4715.0,41.7391]
[1759813657653,0.32792508,4715.1,4715.0,41.7391]
[1759813658158,0.32792508,4715.1,4715.0,41.5261]
[1759813658562,0.32792508,4715.1,4715.0,41.7391]
[1759813659762,0.32792508,4715.1,4715.0,41.5261]
[1759813659960,0.32792508,4715.1,4715.0,41.7391]
[1759813661457,0.00242508,4715.1,4715.0,41.7391]
[1759813661858,0.30932508,4715.1,4715.0,41.7391]
[1759813662362,0.30932508,4715.1,4715.0,41.4325]
[1759813662556,0.73082508,4715.1,4715.0,0.4195]
[1759813662756,0.73082508,4715.1,4715.0,0.6325]
[1759813664556,0.73082508,4715.1,4715.0,0.414]
[1759813665156,0.00242508,4715.1,4715.0,0.9415]
[1759813666662,0.30932508,4715.1,4715.0,0.9415]
[1759813667159,0.51512508,4715.1,4715.0,0.9415]
[1759813667664,0.73082508,4715.1,4715.0,0.4148]
[1759813667856,0.42392508,4715.1,4714.6,3.5894]
[1759813668056,0.7284,4714.7,4714.6,3.4153]
[1759813668257,0.7284,4714.7,4714.6,3.6283]
[1759813669162,0.7284,4714.7,4714.6,3.4153]
[1759813669464,0.7284,4714.7,4714.6,3.6283]
[1759813670265,0.5127,4714.7,4714.6,4.1594]
[1759813670467,0.3042,4714.9,4714.8,0.7378]
[1759813670652,0.76865584,4714.9,4714.8,1.33238]
[1759813671458,0.3042,4714.9,4714.8,1.33238]
[1759813671659,0.30662508,4715.1,4715.0,0.4239]
[1759813671861,0.77157308,4715.1,4715.0,0.9508]
[1759813672061,1.15313308,4715.1,4715.0,0.9508]
[1759813672263,1.35383308,4715.1,4715.0,0.9508]
[1759813672861,1.55973308,4715.1,4715.0,0.6369]
[1759813677060,1.55973308,4715.1,4715.0,0.213]